bitfinex/quotes_ETHUSD_20230113
["timestamp","ask_amount","ask_price","bid_price","bid_amount"]
[1673646066354,1.0,1447.7,1447.3,13.81882]
[1673646066565,1.0,1447.7,1447.3,13.83882]
[1673646066822,1.0,1447.7,1447.3,20.74823]
[1673646067018,1.0,1447.7,1447.3,24.35456272]
[1673646067226,2.0,1448.0,1447.5,20.72538]
[1673646067417,2.0,1448.0,1447.7,20.72223]
[1673646067627,0.96621374,1448.3,1447.7,20.72223]
[1673646067628,0.05600001,1448.3,1447.9,23.21965]
[1673646067979,0.05600001,1448.7,1447.9,23.23965]
[1673646068152,2.5,1448.8,1447.9,23.23965]
[1673646068363,3.41021373,1448.8,1447.9,23.23965]
[1673646068789,0.91021373,1448.8,1447.9,23.23965]
[1673646069137,2.05596856,1448.9,1447.9,23.23965]
[1673646069138,1.99996855,1448.9,1447.9,23.23965]
[1673646069348,4.98586443,1449.0,1448.3,20.71392]
[1673646069349,2.97685385,1449.0,1448.3,20.71392]
[1673646069508,1.99996855,1449.0,1448.3,0.02]
[1673646069715,6.52718656,1449.0,1448.2,6.92496]
[1673646069925,2.5,1448.8,1448.2,0.064]
[1673646070221,10.91789052,1448.8,1448.0,8.88487]
[1673646070388,10.04733982,1448.7,1448.0,0.066]
[1673646070564,0.9768853,1448.7,1448.2,20.71434]
[1673646070789,0.92088529,1448.7,1448.2,13.87548]
[1673646071015,0.11600001,1449.1,1448.3,2.5]
[1673646071188,0.05600001,1449.3,1448.5,20.7105]
[1673646071396,4.50656544,1449.4,1448.5,20.7765]
[1673646071716,0.45065654,1449.3,1448.5,20.7765]
[1673646071936,2.92085384,1449.4,1448.6,6.10833272]
[1673646071937,0.92088529,1449.4,1448.6,6.10833272]
[1673646072173,0.06,1449.6,1448.8,27.60828]
[1673646072174,0.92088529,1449.3,1448.8,27.60828]
[1673646072376,0.92088529,1449.3,1448.9,3.60633272]
[1673646072597,0.92088529,1449.3,1449.0,13.80242]
[1673646072824,0.70856401,1449.6,1449.0,20.76973]
[1673646072972,0.70856401,1449.6,1449.1,2.5]
[1673646073183,9.00600001,1449.8,1449.2,20.70036]
[1673646073416,9.00600001,1449.8,1449.2,20.76636]
[1673646073607,9.00600001,1449.8,1449.2,24.37269272]
[1673646074551,10.00600001,1449.8,1449.2,24.37269272]
[1673646075026,10.00600001,1449.8,1449.3,6.10633272]
[1673646075336,10.00600001,1449.8,1449.4,20.69748]
[1673646075550,10.00600001,1449.8,1449.4,20.76348]
[1673646075781,10.71456402,1449.8,1449.4,20.76348]
[1673646075920,10.71456402,1449.8,1449.4,0.066]
[1673646075921,0.70856401,1449.7,1449.4,0.066]
[1673646076131,3.60633272,1449.6,1449.2,0.066]
[1673646076342,4.52721801,1449.6,1449.1,0.066]
[1673646076557,0.70856401,1449.5,1449.0,0.066]
[1673646076880,3.60633272,1449.4,1449.0,6.90109]
[1673646077070,3.60633272,1449.3,1449.0,6.96709]
[1673646077293,3.60633272,1449.2,1449.0,0.066]
[1673646077630,3.60633272,1449.2,1448.9,19.4134]
[1673646077631,3.96696599,1449.1,1448.9,19.4134]
[1673646077846,4.67553,1449.1,1448.9,19.4134]
[1673646078025,0.70856401,1449.0,1448.9,19.4134]
[1673646078441,0.92088529,1449.1,1448.9,6.96778]
[1673646078706,3.60633272,1449.0,1448.9,0.066]
[1673646079016,3.36063327,1449.0,1448.8,0.066]
[1673646079174,3.0,1449.0,1448.8,6.90215]
[1673646079381,0.76456402,1449.2,1448.8,13.87041]
[1673646079626,0.05600001,1449.4,1448.8,13.87041]
[1673646079849,0.05600001,1449.6,1448.8,17.47674272]
[1673646080068,3.60633272,1449.4,1448.8,6.96815]
[1673646080252,3.60633272,1449.3,1448.8,0.066]
[1673646080468,3.60633272,1449.3,1448.6,0.066]
[1673646080651,3.60633272,1449.3,1448.7,0.07613]
[1673646080652,3.60633272,1449.1,1448.7,0.07613]
[1673646080862,3.60633272,1448.9,1448.7,0.07613]
[1673646081072,3.60633272,1448.8,1448.7,0.07613]
[1673646081492,6.60633272,1448.8,1448.7,0.07613]
[1673646081746,6.37089674,1448.8,1448.7,0.07613]
[1673646082129,13.86041,1449.3,1448.9,1.77091635]
[1673646082130,0.98702246,1449.3,1448.9,1.77091635]
[1673646082341,3.60633272,1449.3,1449.0,1.02764489]
[1673646082550,0.066,1449.4,1449.0,1.02764489]
[1673646082889,0.36274564,1449.6,1449.0,1.02764489]
[1673646082890,2.5,1449.5,1449.0,1.02764489]
[1673646083064,3.60633272,1449.3,1449.0,7.92876489]
[1673646083277,3.60633272,1449.3,1449.0,1.09364489]
[1673646083504,2.60633272,1449.3,1449.0,7.92888489]
[1673646083724,3.60633272,1449.2,1449.0,1.09364489]
[1673646083934,3.96696599,1449.2,1449.0,1.02764489]
[1673646084269,3.60633272,1449.1,1449.0,1.02764489]
[1673646084458,10.50716272,1449.1,1449.0,1.02764489]
[1673646084675,2.5,1449.0,1448.9,1.77091635]
[1673646084908,7.65704899,1449.0,1448.9,1.77091635]
[1673646085116,8.431613,1449.0,1448.9,1.77091635]
[1673646085625,7.38089673,1449.0,1448.9,1.77091635]
[1673646085848,3.066,1449.0,1448.9,1.77091635]
[1673646086039,0.70856401,1449.0,1448.9,15.57447635]
[1673646086213,0.066,1449.3,1448.9,15.64047635]
[1673646086422,0.70856401,1449.1,1448.9,8.73869635]
[1673646087057,0.70856401,1449.1,1448.9,15.64047635]
[1673646087269,0.066,1449.3,1448.9,22.54225635]
[1673646087511,2.5,1449.7,1448.9,22.54225635]
[1673646087720,3.60633272,1449.6,1448.9,22.54225635]
[1673646087895,2.566,1449.7,1449.0,2.5]
[1673646088127,10.72456401,1449.8,1449.1,27.60218]
[1673646088332,14.33089673,1449.8,1449.1,27.66818]
[1673646088548,14.33089673,1449.8,1449.1,20.76735]
[1673646088549,3.60633272,1449.7,1449.1,20.76735]
[1673646088769,6.10633272,1449.7,1449.1,20.76735]
[1673646088985,4.31489673,1449.6,1449.1,27.66818]
[1673646089205,5.0029864,1449.6,1449.1,20.76735]
[1673646089373,4.31489673,1449.5,1449.1,0.066]
[1673646089586,3.60633272,1449.4,1449.1,6.90073]
[1673646089830,4.31489673,1449.4,1449.1,13.86756]
[1673646090004,0.066,1449.5,1449.1,20.76839]
[1673646090212,3.0,1449.5,1449.1,20.76839]
[1673646090424,0.77456401,1449.6,1449.1,20.76839]
[1673646090783,3.066,1449.7,1449.2,2.5]
[1673646090950,2.60633272,1449.7,1449.3,20.69897]
[1673646091297,3.60633272,1449.6,1449.3,0.066]
[1673646091508,17.66409599,1449.6,1449.1,0.066]
[1673646091839,2.5,1449.4,1448.9,1.77091635]
[1673646092056,2.5,1449.4,1448.9,8.67249635]
[1673646092206,3.85633272,1449.3,1448.9,1.83691635]
[1673646092421,10.50668272,1449.2,1448.9,1.77091635]
[1673646092823,3.60633272,1449.1,1448.9,1.77091635]
[1673646093000,0.77456401,1449.2,1448.9,8.67258635]
[1673646093157,4.31489673,1449.2,1448.9,8.73858635]
[1673646093367,3.60633272,1449.1,1448.9,1.83691635]
[1673646093609,3.60633272,1449.1,1448.9,1.77091635]
[1673646094470,2.60633272,1449.1,1448.9,1.77091635]
[1673646096355,0.82248967,1449.2,1448.9,1.77091635]
[1673646096356,0.066,1449.2,1448.9,1.77091635]
[1673646096521,4.60292172,1449.2,1448.9,1.77091635]
[1673646096733,2.5,1449.0,1448.9,1.77091635]
[1673646096989,2.5,1449.0,1448.6,0.066]
[1673646096990,17.40895272,1449.0,1448.6,0.066]
[1673646097195,17.40895272,1449.0,1448.5,10.49081635]
[1673646097196,3.60633272,1448.9,1448.5,10.49081635]
[1673646097517,4.31489673,1448.8,1448.5,10.49081635]
[1673646097730,3.60633272,1448.7,1448.5,10.49081635]
[1673646097891,3.60633272,1448.7,1448.5,0.066]
[1673646098100,3.60633272,1448.7,1448.2,6.97078]
[1673646098310,11.63752939,1448.7,1448.2,0.066]
[1673646098653,3.60633272,1448.6,1448.1,2.54011547]
[1673646098865,3.60633272,1448.6,1448.1,0.04011547]
[1673646098866,10.50963272,1448.6,1448.1,0.04011547]
[1673646099078,3.60633272,1448.5,1448.1,0.04011547]
[1673646099254,10.87122599,1448.4,1448.1,0.04011547]
[1673646099465,3.60633272,1448.3,1448.1,0.04011547]
[1673646099884,0.066,1448.4,1448.1,0.04011547]
[1673646100261,3.0,1448.5,1448.1,0.04011547]
[1673646100507,3.60633272,1448.4,1448.1,0.04011547]
[1673646100659,3.0,1448.5,1448.1,0.04011547]
[1673646100660,3.60633272,1448.3,1448.1,0.04011547]
[1673646101081,3.60633272,1448.3,1448.1,6.94571547]
[1673646101339,3.97356599,1448.3,1448.1,0.10611547]
[1673646101509,10.87855599,1448.3,1448.1,0.04011547]
[1673646101871,4.03956599,1448.3,1448.1,0.04011547]
[1673646102080,3.97356599,1448.3,1448.1,0.04011547]
[1673646102292,3.60633272,1448.2,1448.1,0.04011547]
[1673646102604,1.7784552,1448.2,1448.1,0.04011547]
[1673646102910,3.38061705,1448.2,1448.0,10.05611547]
[1673646103079,3.60633272,1448.1,1448.0,10.05611547]
[1673646104024,0.066,1448.2,1448.0,10.05611547]
[1673646104237,3.60633272,1448.2,1448.0,10.05611547]
[1673646104769,3.60633272,1448.1,1448.0,10.05611547]
[1673646105177,0.066,1448.2,1448.0,16.96218547]
[1673646105409,3.60633272,1448.2,1448.0,10.05611547]
[1673646106441,3.60633272,1448.1,1448.0,10.05611547]
[1673646106797,4.65750699,1448.1,1448.0,10.05611547]
[1673646107007,11.56310699,1448.1,1448.0,10.05611547]
[1673646107231,11.62910699,1448.1,1448.0,10.05611547]
[1673646107438,18.53470699,1448.1,1448.0,10.05611547]
[1673646107746,28.44030699,1448.1,1448.0,10.05611547]
[1673646107938,29.148871,1448.1,1448.0,10.05611547]
[1673646108545,29.148871,1448.1,1448.0,2.431433]
[1673646108783,29.148871,1448.1,1447.9,0.0438981]
[1673646108784,16.31214,1448.0,1447.9,0.0438981]
[1673646108993,25.89935982,1448.0,1447.9,0.0438981]
[1673646109323,16.20185383,1448.0,1447.9,0.0438981]
[1673646109543,13.57840272,1448.0,1447.9,0.0438981]
[1673646109852,0.066,1448.0,1447.9,7.8404481]
[1673646110009,6.90456,1448.4,1447.9,7.9064481]
[1673646110220,3.60633272,1448.3,1447.9,7.9064481]
[1673646110465,6.9056,1448.1,1447.9,0.1098981]
[1673646110658,6.9056,1448.1,1447.9,0.0438981]
[1673646110659,3.67233272,1448.1,1447.9,0.0438981]
[1673646110866,0.066,1448.2,1447.9,1.8218981]
[1673646111057,1.19431667,1448.7,1447.9,15.6349981]
[1673646111271,6.90396,1448.5,1447.9,15.7009981]
[1673646111528,17.41504272,1448.4,1447.9,1.8878981]
[1673646111743,3.60633272,1448.3,1447.9,8.7283481]
[1673646111901,3.60633272,1448.3,1447.9,8.7943481]
[1673646112431,3.60633272,1448.3,1447.9,0.1098981]
[1673646112432,17.41659272,1448.2,1447.9,0.1098981]
[1673646112757,3.60633272,1448.1,1447.9,0.0438981]
[1673646112980,0.066,1448.2,1447.9,6.9504481]
[1673646113197,0.70856401,1448.4,1447.9,13.9229981]
[1673646113419,0.70856401,1448.4,1447.9,0.1098981]
[1673646113420,3.60633272,1448.3,1447.9,0.1098981]
[1673646113639,10.51109272,1448.3,1447.9,2.5438981]
[1673646113945,10.51109272,1448.3,1447.9,16.3569381]
[1673646113946,0.066,1448.3,1447.9,16.3569381]
[1673646114173,6.90371,1448.5,1447.9,16.4229381]
[1673646114317,17.41479272,1448.4,1447.9,0.1098981]
[1673646114527,3.60633272,1448.3,1447.9,0.0438981]
[1673646114745,17.41605272,1448.3,1447.9,0.0438981]
[1673646114985,3.60633272,1448.2,1447.9,0.0438981]
[1673646115195,13.81214,1448.0,1447.9,0.0438981]
[1673646115457,6.97207,1448.0,1447.9,0.0438981]
[1673646116052,4.38089673,1448.0,1447.9,0.0438981]
[1673646116264,0.066,1448.1,1447.9,0.0438981]
[1673646116533,3.60633272,1448.0,1447.9,0.0438981]
[1673646116698,6.90607,1448.0,1447.9,1.8218981]
[1673646116895,0.066,1448.0,1447.9,22.72373791]
[1673646117106,0.066,1448.6,1447.9,27.99207063]
[1673646117352,0.066,1448.6,1448.0,0.264]
[1673646117353,6.90537,1448.6,1448.0,0.264]
[1673646117562,13.87274,1448.6,1448.0,0.264]
[1673646117889,13.87274,1448.6,1448.0,0.198]
[1673646117890,15.950323,1448.6,1448.0,0.198]
[1673646118100,3.60633272,1448.5,1448.0,0.198]
[1673646118729,6.96941,1448.6,1448.0,2.698]
[1673646118947,0.066,1448.6,1448.0,20.11641272]
[1673646119100,3.60633272,1448.6,1448.0,9.67001]
[1673646119312,3.60633272,1448.5,1448.0,9.67001]
[1673646119537,17.41379272,1448.5,1448.0,2.764]
[1673646119742,10.57602272,1448.5,1448.0,2.698]
[1673646119981,10.57602272,1448.5,1448.0,9.60405]
[1673646120193,3.67233272,1448.5,1448.0,9.67005]
[1673646120471,17.41381272,1448.5,1448.0,9.67005]
[1673646120697,0.066,1448.5,1448.0,20.18245272]
[1673646121056,0.066,1448.9,1448.1,5.20233272]
[1673646121359,0.066,1448.9,1448.2,6.90467]
[1673646121360,13.80374,1448.9,1448.2,6.90467]
[1673646121527,15.946853,1448.9,1448.2,6.97067]
[1673646121736,15.946853,1448.9,1448.2,0.066]
[1673646122054,15.946853,1448.9,1448.1,8.56713]
[1673646122262,15.946853,1448.9,1448.1,6.97113]
[1673646122471,15.946853,1448.9,1448.1,0.066]
[1673646122472,20.70978,1448.6,1448.1,0.066]
[1673646122684,20.70978,1448.6,1448.0,0.198]
[1673646122685,20.77578,1448.6,1448.0,0.198]
[1673646122956,13.8087,1448.4,1448.0,0.198]
[1673646123138,13.8747,1448.4,1448.0,0.198]
[1673646123302,20.33832013,1448.4,1448.0,0.198]
[1673646123530,3.60633272,1448.3,1448.0,0.198]
[1673646123861,6.90512,1448.2,1448.0,10.198]
[1673646124049,5.94303048,1448.2,1448.0,10.264]
[1673646124400,12.84815048,1448.2,1448.0,10.264]
[1673646124612,3.60633272,1448.1,1448.0,10.264]
[1673646124777,7.67979401,1448.2,1448.0,10.264]
[1673646125189,3.60633272,1448.1,1448.0,10.264]
[1673646125403,17.41753272,1448.1,1448.0,10.264]
[1673646125656,19.99326539,1448.1,1448.0,10.264]
[1673646126348,26.6074294,1448.1,1448.0,10.264]
[1673646126878,22.7018294,1448.1,1448.0,10.264]
[1673646127237,2.67233272,1448.1,1448.0,10.264]
[1673646127408,2.60633272,1448.1,1448.0,10.264]
[1673646127839,9.51193272,1448.1,1448.0,10.264]
[1673646128047,9.57793272,1448.1,1448.0,10.264]
[1673646128454,16.48353272,1448.1,1448.0,10.264]
[1673646128698,18.82243199,1448.1,1448.0,10.264]
[1673646128871,22.530996,1448.1,1448.0,5.37004]
[1673646130392,21.82243199,1448.1,1448.0,5.37004]
[1673646130704,23.82243199,1448.1,1448.0,5.37004]
[1673646130925,21.82243199,1448.1,1448.0,5.37004]
[1673646131288,2.5,1448.0,1447.9,0.0715981]
[1673646131499,25.10071592,1448.0,1447.9,0.0715981]
[1673646131814,25.87527993,1448.0,1447.9,0.0715981]
[1673646132019,22.66671592,1448.0,1447.9,0.0715981]
[1673646133864,0.071,1447.9,1447.4,17.2863]
[1673646134016,24.32913272,1447.7,1447.4,0.066]
[1673646134225,3.67233272,1447.7,1447.2,0.04273184]
[1673646134450,7.76667159,1447.9,1447.2,0.04273184]
[1673646134451,3.60633272,1447.6,1447.2,0.04273184]
[1673646134656,0.066,1447.8,1447.6,1.82830017]
[1673646134657,0.066,1447.7,1447.6,1.82830017]
[1673646134920,3.60633272,1447.7,1447.6,1.82830017]
[1673646135277,6.97305,1447.8,1447.6,1.82830017]
[1673646135278,0.066,1447.8,1447.6,1.82830017]
[1673646135484,6.90638,1448.0,1447.6,1.82830017]
[1673646135485,0.066,1448.0,1447.6,1.82830017]
[1673646135709,17.41856272,1448.0,1447.6,1.82830017]
[1673646135954,3.60633272,1447.9,1447.6,1.82830017]
[1673646136125,10.51336272,1447.8,1447.6,1.82830017]
[1673646136339,3.60633272,1447.7,1447.6,1.82830017]
[1673646136545,17.42133272,1447.7,1447.6,1.82830017]
[1673646136871,18.19589673,1447.7,1447.6,1.82830017]
[1673646137081,24.3968924,1447.7,1447.6,1.82830017]
[1673646137586,17.4893924,1447.7,1447.6,1.82830017]
[1673646137830,31.3043924,1447.7,1447.6,1.82830017]
[1673646138091,24.6268924,1447.7,1447.6,1.82830017]
[1673646138281,24.3968924,1447.7,1447.6,1.82830017]
[1673646138657,26.8968924,1447.7,1447.6,1.7e-07]
[1673646138868,27.1268924,1447.7,1447.6,1.7e-07]
[1673646139111,24.6268924,1447.7,1447.6,1.7e-07]
[1673646139617,24.3968924,1447.7,1447.6,1.7e-07]
[1673646139809,21.19589673,1447.7,1447.6,1.7e-07]
[1673646140016,0.066,1447.7,1447.6,1.7e-07]
[1673646140262,17.42133272,1447.7,1447.6,1.7e-07]
[1673646140487,17.48733272,1447.7,1447.6,1.7e-07]
[1673646141071,18.19589673,1447.7,1447.6,1.7e-07]
[1673646141280,21.3969364,1447.7,1447.6,1.7e-07]
[1673646141699,24.3969364,1447.7,1447.6,1.7e-07]
[1673646141928,24.6269364,1447.7,1447.6,1.7e-07]
[1673646143174,26.62690495,1447.7,1447.6,1.7e-07]
[1673646143392,35.58497633,1447.7,1447.6,1.7e-07]
[1673646143602,30.81390495,1447.7,1447.6,1.7e-07]
[1673646143920,28.8139364,1447.7,1447.6,1.7e-07]
[1673646144136,35.18700778,1447.7,1447.6,1.7e-07]
[1673646144306,32.41590495,1447.7,1447.6,1.7e-07]
[1673646144520,33.346958,1447.7,1447.6,1.7e-07]
[1673646144779,26.2289364,1447.7,1447.6,1.7e-07]
[1673646144946,17.7194364,1447.7,1447.6,1.7e-07]
[1673646145151,27.69810368,1447.7,1447.6,1.7e-07]
[1673646145370,31.3044364,1447.7,1447.6,1.7e-07]
[1673646146833,31.5344364,1447.7,1447.6,1.7e-07]
[1673646147688,31.3044364,1447.7,1447.6,1.7e-07]
[1673646147899,14.28839673,1447.7,1447.6,1.7e-07]
[1673646148126,6.9735,1447.7,1447.6,1.7e-07]
[1673646148342,13.881,1447.7,1447.6,1.7e-07]
[1673646148536,10.57983272,1447.7,1447.6,1.7e-07]
[1673646148877,17.48733272,1447.7,1447.2,9.15262201]
[1673646149092,17.48733272,1447.7,1447.2,9.21862201]
[1673646149093,3.60633272,1447.6,1447.2,9.21862201]
[1673646149304,6.9735,1447.7,1447.2,9.21862201]
[1673646149305,0.066,1447.7,1447.2,16.12851201]
[1673646149612,6.97244,1448.0,1447.2,19.73484473]
[1673646149824,6.90717,1447.8,1447.2,2.30873201]
[1673646150038,6.97317,1447.8,1447.2,12.75893473]
[1673646150250,0.066,1447.8,1447.5,6.90841]
[1673646150406,6.97098,1448.3,1447.6,0.690841]
[1673646150616,13.87603,1448.3,1447.6,0.690841]
[1673646150856,13.81046,1448.2,1447.5,0.066]
[1673646151073,14.58502401,1448.2,1447.4,2.5]
[1673646151476,6.90644,1448.0,1447.4,2.5]
[1673646151686,13.87888,1448.0,1447.4,2.5]
[1673646151921,0.066,1448.0,1447.5,6.90819]
[1673646152086,0.002,1448.0,1447.6,2.5]
[1673646152458,7.68028401,1448.1,1447.6,2.7564]
[1673646152615,7.68028401,1448.1,1447.5,0.066]
[1673646152616,14.58600401,1448.1,1447.5,0.066]
[1673646152826,14.58600401,1448.1,1447.4,2.5]
[1673646153260,5.60633272,1448.0,1447.3,0.066]
[1673646153503,31.23461272,1447.8,1447.1,0.1098981]
[1673646153811,6.72979399,1447.7,1447.1,0.0438981]
[1673646154040,10.51443272,1447.6,1447.1,0.0438981]
[1673646154256,0.77456401,1447.6,1447.1,16.3641781]
[1673646154555,7.61654401,1447.6,1447.1,2.6098981]
[1673646154720,18.19700673,1447.6,1447.1,2.5438981]
[1673646154929,3.60633272,1447.5,1447.1,0.0438981]
[1673646155144,13.81806,1447.4,1447.1,0.0438981]
[1673646155380,18.19895673,1447.4,1447.1,0.0438981]
[1673646155991,17.49039272,1447.4,1447.1,2.5438981]
[1673646156202,17.49039272,1447.4,1447.1,0.0438981]
[1673646156415,3.60633272,1447.3,1447.0,38.1731981]
[1673646156648,20.72967,1447.2,1447.0,20.0598981]
[1673646156868,18.96693907,1447.2,1447.0,20.0598981]
[1673646157251,0.066,1447.2,1447.1,6.91037]
[1673646157466,7.61815401,1447.3,1447.1,1.844]
[1673646157685,6.97559,1447.3,1447.1,1.778]
[1673646157864,6.97559,1447.3,1447.0,20.0598981]
[1673646157865,17.49151272,1447.3,1447.0,20.0598981]
[1673646158225,13.82074,1447.1,1447.0,20.0598981]
[1673646158400,10.58270272,1447.1,1447.0,20.0598981]
[1673646158609,17.49307272,1447.1,1447.0,20.0598981]
[1673646158954,18.20163673,1447.1,1447.0,20.0598981]
[1673646159167,21.4038464,1447.1,1447.0,20.0598981]
[1673646159915,2.5,1447.0,1446.8,0.04596809]
[1673646160236,31.25161272,1446.9,1446.8,0.04596809]
[1673646160394,32.02617673,1446.9,1446.8,0.04596809]
[1673646161758,11.29221673,1446.9,1446.8,0.04596809]
[1673646161973,18.20353673,1446.9,1446.8,0.04596809]
[1673646162184,0.066,1446.9,1446.8,1.82396809]
[1673646162387,6.91132,1446.9,1446.8,1.82396809]
[1673646162717,13.88864,1446.9,1446.8,0.04596809]
[1673646162936,6.97732,1446.9,1446.8,0.04596809]
[1673646163130,13.88864,1446.9,1446.8,0.04596809]
[1673646164217,5.94843599,1446.9,1446.8,0.04596809]
[1673646164404,12.85975599,1446.9,1446.8,0.04596809]
[1673646164615,5.94843599,1446.9,1446.8,0.04596809]
[1673646164830,0.066,1446.9,1446.8,0.04596809]
[1673646165070,13.88809,1447.0,1446.8,1.82396809]
[1673646165228,13.88809,1447.0,1446.8,0.04596809]
[1673646165229,13.82264,1446.9,1446.8,0.04596809]
[1673646165439,19.1877693,1446.9,1446.8,0.04596809]
[1673646165663,26.0990893,1446.9,1446.8,0.04596809]
[1673646166065,26.0990893,1446.9,1446.8,1.82396809]
[1673646166066,0.066,1446.9,1446.8,1.82396809]
[1673646166274,6.97565,1447.3,1446.9,0.066]
[1673646166484,6.97549,1447.3,1446.9,0.066]
[1673646166751,6.91023,1447.2,1446.9,0.066]
[1673646166982,0.066,1447.2,1446.9,0.066]
[1673646167270,13.81927,1447.3,1446.9,10.68384953]
[1673646167271,0.066,1447.3,1446.9,10.68384953]
[1673646167437,6.96784,1447.7,1446.9,17.66116953]
[1673646167438,6.97384,1447.7,1446.9,17.66116953]
[1673646167638,3.60633272,1447.6,1446.9,17.56097272]
[1673646167972,6.90813,1447.6,1447.0,2.5]
[1673646168212,6.97413,1447.6,1447.0,9.41067]
[1673646168374,17.48859272,1447.6,1447.0,2.566]
[1673646168748,3.60633272,1447.5,1447.0,2.5]
[1673646168906,10.51490272,1447.5,1447.0,2.5]
[1673646169115,10.58090272,1447.5,1447.0,2.5]
[1673646169367,10.58090272,1447.5,1447.0,9.41081]
[1673646169530,3.67233272,1447.5,1447.0,9.47681]
[1673646169742,20.79066,1447.6,1447.0,13.08314272]
[1673646169959,13.88235,1447.6,1447.0,13.08314272]
[1673646170196,0.066,1447.6,1447.0,19.99399272]
[1673646170405,6.90762,1447.7,1447.0,19.99399272]
[1673646170581,6.90808,1447.6,1447.0,19.99399272]
[1673646170804,6.97408,1447.6,1447.0,22.56514071]
[1673646171014,6.97408,1447.6,1447.0,15.65429005]
[1673646171015,13.88216,1447.6,1447.0,15.65429005]
[1673646171282,17.48849272,1447.6,1447.0,9.54795733]
[1673646171586,17.48849272,1447.6,1447.0,0.066]
[1673646171587,10.51489272,1447.5,1447.0,0.066]
[1673646171798,10.58089272,1447.5,1446.9,31.49248]
[1673646172006,20.00001439,1447.5,1446.9,24.51548]
[1673646172445,3.60633272,1447.4,1446.9,17.6046]
[1673646172623,16.39368167,1447.5,1446.9,17.6046]
[1673646172624,24.69571599,1447.3,1446.9,17.6046]
[1673646172833,10.58178272,1447.3,1446.9,17.6046]
[1673646173162,17.49143272,1447.3,1446.9,17.6046]
[1673646173505,13.82074,1447.1,1446.9,17.6046]
[1673646173686,13.88674,1447.1,1446.9,0.066]
[1673646174018,13.88674,1447.1,1446.8,0.04596809]
[1673646174019,3.60633272,1447.0,1446.8,0.04596809]
[1673646174177,20.73396,1446.9,1446.8,0.04596809]
[1673646174386,31.31761272,1446.9,1446.8,0.04596809]
[1673646175049,24.40629272,1446.9,1446.8,0.04596809]
[1673646175263,26.84692199,1446.9,1446.8,0.04596809]
[1673646175856,6.11296199,1446.9,1446.8,0.04596809]
[1673646175998,4.38089673,1446.9,1446.8,0.04596809]
[1673646176194,18.13753673,1446.9,1446.8,0.04596809]
[1673646176414,18.20353673,1446.9,1446.8,0.04596809]
[1673646177488,25.11485673,1446.9,1446.8,0.04596809]
[1673646177706,20.73711,1446.7,1446.4,17.27416123]
[1673646177864,24.40944272,1446.7,1446.4,0.06426123]
[1673646178230,24.40944272,1446.7,1446.4,0.04389857]
[1673646178393,22.58004983,1446.7,1446.4,0.04389857]
[1673646178961,0.066,1446.7,1446.4,13.87126857]
[1673646179135,6.91094,1447.0,1446.4,13.89163123]
[1673646179348,13.82284,1446.9,1446.4,0.06426123]
[1673646179705,0.066,1446.9,1446.4,13.87131857]
[1673646180014,6.97649,1447.1,1446.6,13.8251]
[1673646180261,13.88712,1447.1,1446.6,0.02036266]
[1673646180386,3.60633272,1447.0,1446.6,6.91268]
[1673646180753,3.60633272,1447.0,1446.6,0.02036266]
[1673646180754,10.51721272,1447.0,1446.6,0.02036266]
[1673646180957,10.58321272,1447.0,1446.5,16.34640266]
[1673646181272,0.066,1447.0,1446.5,21.96073538]
[1673646181432,0.066,1447.2,1446.8,20.7354]
[1673646181647,13.81834,1447.4,1446.8,6.93216266]
[1673646181852,10.51588272,1447.3,1446.8,0.02036266]
[1673646182057,10.51588272,1447.3,1446.6,24.75455266]
[1673646182058,6.91064,1447.1,1446.6,24.75455266]
[1673646182271,3.60633272,1447.0,1446.6,24.75455266]
[1673646182524,3.60633272,1447.0,1446.6,17.84186266]
[1673646182802,0.002,1447.0,1446.7,2.5]
[1673646183012,13.88532,1447.3,1446.7,9.41219]
[1673646183256,10.51622272,1447.2,1446.7,2.52036266]
[1673646183506,3.60633272,1447.1,1446.6,17.84186266]
[1673646183718,11.22570673,1447.1,1446.7,2.5]
[1673646183933,3.60633272,1447.0,1446.6,17.84186266]
[1673646184117,17.42907272,1446.9,1446.6,17.84186266]
[1673646184430,10.58365272,1446.9,1446.6,17.84186266]
[1673646184640,4.66469799,1446.8,1446.6,17.84186266]
[1673646184991,3.60633272,1446.7,1446.6,0.02036266]
[1673646185166,3.60633272,1446.7,1446.4,0.04389857]
[1673646185376,3.60633272,1446.6,1446.4,0.04389857]
[1673646185600,3.60633272,1446.5,1446.4,0.04389857]
[1673646185998,3.60833272,1446.5,1446.4,0.04389857]
[1673646186203,3.60633272,1446.5,1446.4,0.04389857]
[1673646186537,11.64894839,1446.5,1446.4,0.04389857]
[1673646186880,11.71494839,1446.5,1446.4,0.04389857]
[1673646187090,4.80171839,1446.5,1446.4,0.04389857]
[1673646187287,4.73571839,1446.5,1446.4,0.04389857]
[1673646187476,12.3575124,1446.5,1446.4,0.04389857]
[1673646187693,21.8367424,1446.5,1446.4,0.04389857]
[1673646187902,22.3367424,1446.5,1446.4,0.04389857]
[1673646188139,36.3367424,1446.5,1446.4,0.04389857]
[1673646188574,8.5102824,1446.5,1446.4,0.04389857]
[1673646188728,0.066,1446.5,1446.4,0.04389857]
[1673646188937,7.62085401,1446.7,1446.4,0.04389857]
[1673646189149,7.62085401,1446.7,1446.4,13.87085857]
[1673646189150,0.066,1446.7,1446.4,13.87085857]
[1673646189478,6.97596,1447.2,1446.4,24.41126395]
[1673646189686,6.97596,1447.2,1446.7,2.008]
[1673646189687,0.066,1447.2,1446.7,2.008]
[1673646189909,1.99996855,1447.5,1446.7,22.74469]
[1673646189910,6.90883,1447.5,1446.7,22.74469]
[1673646190102,6.90883,1447.5,1446.7,20.75705266]
[1673646190103,0.70856401,1447.2,1446.7,20.75705266]
[1673646190456,0.70856401,1447.2,1446.7,6.93259266]
[1673646190619,0.70856401,1447.2,1446.8,2.5]
[1673646190829,0.70856401,1447.2,1446.7,0.02036266]
[1673646191046,0.70856401,1447.2,1446.7,6.91227]
[1673646191366,0.70856401,1447.2,1446.7,0.02036266]
[1673646191367,6.91111,1447.0,1446.7,0.02036266]
[1673646191563,6.91111,1447.0,1446.5,16.04102]
[1673646191564,0.066,1447.0,1446.5,16.04102]
[1673646191770,9.6606934,1447.2,1446.5,16.06138266]
[1673646191771,9.7266934,1447.2,1446.5,16.06138266]
[1673646192254,7.7376934,1447.2,1446.5,16.06138266]